Cogmind - Beta 16.1 @@@ ROGUE MODE // 2026.04.04 @ 20:13:55 Player: Rainbow Dash Result: Destroyed by as-32708 with Assembled Rifle Performance ------------- Evolutions (0) 0 Regions Visited (2) 400 Robots Destroyed (20) 100 Value Destroyed (336) 336 Prototype IDs (4) 80 Alien Tech Used (0) 0 Bonus (0) 0 TOTAL SCORE: 916 Bonus ------- None Cogmind --------- Core Integrity 0/250 Matter 295/300 Energy 124/125 System Corruption 8% Temperature Cool (22) Movement Treading (160) Location -10/Mines Parts ------- > --- POWER (1) -------- Light Ion Engine > --- PROPULSION (2) --- Light Treads Light Treads > --- UTILITY (2) ------ Large Storage Unit > --- WEAPON (2) ------- Light Assault Rifle > --- INVENTORY (15) --- Light Treads Wheel Improved Heat Sink Medium Matter Pod (100) Seismic Detector Light Armor Plating EM Pulse Gun Small Laser Assault Rifle Assault Rifle Assault Rifle Assault Rifle Light Assault Rifle Grenade Launcher Datajack Peak State ------------ > --- POWER ------------ Ion Engine > --- PROPULSION ------- Light Treads Light Treads > --- UTILITY ---------- Large Storage Unit Seismic Detector > --- WEAPON ----------- Small Laser Light Assault Rifle > --- INVENTORY -------- Light Ion Engine Light Treads Wheel Improved Heat Sink Seismic Detector EM Pulse Gun Light Assault Rifle Grenade Launcher [Rating: 8] Favorites ----------- Power Light Ion Engine Engine Light Ion Engine Propulsion Light Treads Treads Light Treads Wheel Wheel Utility Seismic Detector Device Seismic Detector Storage Large Storage Unit Weapon Light Assault Rifle Energy Gun Small Laser Ballistic Gun Light Assault Rifle Launcher Grenade Launcher Special Weapon Mining Laser Build | -11 -10 -10 ------- Run | Yrd Mat Min Slots Evolved . | . . . Power . | . . . Propulsion . | . . . Utility . | . . . Weapon . | . . . Parts Attached 15 | 9 5 1 Power 3 | 1 2 . Engine 3 | 1 2 . Core . | . . . Reactor . | . . . Propulsion 4 | 3 1 . Treads 3 | 2 1 . Leg . | . . . Wheel 1 | 1 . . Hover . | . . . Flight . | . . . Utility 3 | 2 1 . Device 1 | 1 . . Storage 2 | 1 1 . Processor . | . . . Hackware . | . . . Protection . | . . . Artifact . | . . . Weapon 5 | 3 1 1 Energy Gun 2 | 2 . . Energy Cannon . | . . . Ballistic Gun 1 | 1 . . Ballistic Cannon . | . . . Launcher 1 | . 1 . Special Weapon 1 | . . 1 Impact Weapon . | . . . Slashing Weapon . | . . . Piercing Weapon . | . . . Special Melee Weapon . | . . . Unidentified Prototypes . | . . . Parts Lost 2 | . . 2 Power . | . . . Propulsion . | . . . Utility 1 | . . 1 Weapon 1 | . . 1 Highest Loss Streak 2 | . . 2 To Critical Strikes . | . . . Average Backups 9 | 2 9 14 Power . | . . . Propulsion 1 | . 1 2 Utility 2 | . 2 4 Weapon 5 | . 4 8 Tool/Special . | . . . Unused Backups 10 | . . 10 Power . | . . . Propulsion . | . . . Utility 4 | . . 4 Weapon 5 | . . 5 Tool/Special 1 | . . 1 Average Slot Usage (%) 99 | . 100 99 Engine 14 | . 14 14 Treads 28 | . 28 28 Device 13 | . 14 13 Storage 14 | . 14 14 Energy Gun 13 | . 13 13 Ballistic Gun 13 | . 13 14 Peak Build Rating 8 | 7 8 8 Average Rating 7 | 5 7 7 On Entrance 5 | . 7 8 Avg Prop Armor Cover (%) 12 | 12 . . Naked Turns . | . . . Heaviest Build 28 | 11 28 26 Greatest Support 40 | 40 40 40 Greatest Overweight (x) 2 | 2 . . Average Overweight (x) . | . . . Largest Inventory Capacity 15 | 8 15 15 Average Capacity 14 | 7 14 15 Most Carried 15 | 3 14 15 Average Carried 9 | 2 9 14 Final Capacity 15 | 8 15 15 Final Carried 15 | 3 14 15 Class Distribution -------------------- 100% | Mutant Dominant Class ---------------- Mutant | -10/Materials Mutant | -10/Mines Resources | -11 -10 -10 ----------- Run | Yrd Mat Min Matter Collected 606 | 293 308 5 Remotely . | . . . Salvage Created 644 | 77 567 . Parts 37 | 3 34 . Haulers Intercepted 1 | . 1 . Recyclers Shooed 2 | . 2 . Parts Field Recycled . | . . . Retrieved Matter . | . . . Parts Self-Destructed . | . . . Prevented . | . . . Parts Restored . | . . . Kills | -11 -10 -10 ------- Run | Yrd Mat Min Combat Hostiles Destroyed 13 | . 13 . Guns 10 | . 10 . AOE 3 | . 3 . Classes Destroyed 6 | 2 4 . Tunneler 2 | 1 1 . Hauler 1 | . 1 . Recycler 3 | 1 2 . Operator 1 | . 1 . Swarmer 8 | . 8 . Grunt 5 | . 5 . Best Kill Streak 6 | 2 6 . Combat Bots Only 4 | . 4 . Max Kills in Single Turn 2 | 1 2 . Gunslinging . | . . . Exploded 2 | . 2 . Melee . | . . . Uniques/NPCs Destroyed . | . . . Combat | -11 -10 -10 -------- Run | Yrd Mat Min Hostile Shots Fired 66 | . 48 18 Missed 20 | . 12 8 Hits 46 | . 36 10 Melee 1 | . . 1 Projectile 45 | . 36 9 Damage Taken 822 | . 355 467 Core 254 | . 58 196 Absorbed by Shields . | . . . Regen/Repaired (Parts) 156 | . 156 . Core Remaining (%) 100 | 100 . . Volleys Fired 58 | 3 50 5 Largest 2 | 2 2 2 Hottest 120 | 60 60 120 Shots Fired 104 | 6 91 7 Gun 97 | 6 86 5 Cannon . | . . . Launcher 5 | . 5 . Special 2 | . . 2 Kinetic 53 | 3 45 5 Thermal 46 | 3 41 2 Explosive 5 | . 5 . Electromagnetic . | . . . Robot Hit Streak 10 | 5 10 . Robot Miss Streak 3 | 1 3 . Penetration Max . | . . . Secondary Targets . | . . . Shots Hit Robots 59 | 5 54 . Core Hits 35 | 4 31 . Critical Kills . | . . . Critical Parts Destroyed . | . . . Critical Strikes . | . . . Melee Attacks . | . . . Impact . | . . . Slashing . | . . . Piercing . | . . . Sneak Attacks . | . . . Combat Hostiles . | . . . Follow-up Attacks . | . . . Damage Inflicted 711 | 46 665 . Guns 570 | 46 524 . Cannons . | . . . Explosions 140 | . 140 . Melee . | . . . Ramming 1 | . 1 . Kinetic 262 | 12 250 . Thermal 308 | 34 274 . Explosive 140 | . 140 . Electromagnetic . | . . . Impact . | . . . Slashing . | . . . Piercing . | . . . Highest Corruption 8 | . 1 8 Average Corruption 1 | . 1 1 Corruption Purged . | . . . Corruption Blocked . | . . . Effects 5 | . 3 2 Matter Fused 2 | . 1 1 Heat Flow Errors 3 | . 2 1 Overload Shots . | . . . Overflow Damage 27 | . 27 . Projectiles . | . . . Explosions 27 | . 27 . Melee . | . . . Knockbacks . | . . . Impact . | . . . Kinetic . | . . . Secondary . | . . . Self-Inflicted Damage . | . . . Shots . | . . . Rammed 1 | . 1 . Targets Rammed 1 | . 1 . Kicked . | . . . Crushed . | . . . Highest Temperature 182 | 20 182 131 Average Temperature 39 | 15 39 44 Received Heat Transfer 163 | . 123 40 Siege Activations . | . . . Martial Activations . | . . . Shielding Activations . | . . . Robots Disrupted . | . . . Combat Hostiles . | . . . Robots Corrupted . | . . . Combat Hostiles . | . . . Parts Fried . | . . . Impact Corruptions . | . . . Robots Melted . | . . . Combat Hostiles . | . . . Parts Melted . | . . . Heat Transferred 700 | 75 625 . Parts Sabotaged . | . . . Parts Stolen . | . . . Parts Stripped . | . . . Power Chain Reactions . | . . . Alert | -11 -10 -10 ------- Run | Yrd Mat Min Maximum Alert Level . | . . . Low Security (%) 100 | 100 100 100 Level 1 . | . . . Level 2 . | . . . Level 3 . | . . . Level 4 . | . . . Level 5 . | . . . High Security . | . . . Max Security . | . . . Peak Influence 181 | 10 181 2 Initial 2 | . . 2 Average 46 | 1 56 . Influence Increases 446 | 10 435 1 Destroy 0b10 Robot/C 260 | . 260 . Destroy 0b10 Robot/NC 35 | 10 25 . Destroy Leader 52 | . 52 . Successful Hack 27 | . 27 . Disable Machine 15 | . 15 . Destroy Structure 42 | . 41 1 Lose Combat Pursuer 15 | . 15 . Influence Decreases 446 | 10 428 8 Entered New Map 5 | . . 5 Time Decay 440 | 10 428 2 Lost Part 1 | . . 1 Squads Dispatched 2 | . 2 . Investigation 2 | . 2 . Extermination . | . . . Reinforcement . | . . . Assault . | . . . Garrison . | . . . Intercept . | . . . Searches Triggered . | . . . Construction Impeded . | . . . Haulers Reinforced . | . . . Active Scanning Responses . | . . . Cargo Convoy Interrupts . | . . . Stealth | -11 -10 -10 --------- Run | Yrd Mat Min Distress Signals 4 | . 4 . Communications Jammed . | . . . Distress Signals . | . . . Times Spotted 35 | . 23 12 Peak Tracking Total 11 | . 4 11 Tactical Retreats 3 | . 3 . Traps | -11 -10 -10 ------- Run | Yrd Mat Min Traps Triggered . | . . . Indirectly . | . . . Trap Hack Attempts . | . . . Triggered . | . . . Disarmed . | . . . Reprogrammed . | . . . Reused . | . . . Traps Extracted . | . . . Installed . | . . . Triggered . | . . . Machines | -11 -10 -10 ---------- Run | Yrd Mat Min Machines Disabled 1 | . 1 . Max in Single Turn 1 | . 1 . Machines Repaired . | . . . Machines Dismantled . | . . . Machines Sabotaged . | . . . Overloaded Fab Kills . | . . . Hacking | -11 -10 -10 --------- Run | Yrd Mat Min Machines Accessed 11 | . 10 1 Terminals 9 | . 8 1 Fabricators . | . . . Repair Stations 1 | . 1 . Recycling Units 1 | . 1 . Scanalyzers . | . . . Garrison Access . | . . . Total Hacks 31 | . 29 2 Successful 18 | . 17 1 Failed 13 | . 12 1 Catastrophic 3 | . 3 . Database Lockouts . | . . . Manual 21 | . 19 2 Terminals 24 | . 22 2 Fabricators . | . . . Repair Stations 6 | . 6 . Recycling Units 1 | . 1 . Scanalyzers . | . . . Garrison Access . | . . . Terminal Hacks 4 | . 3 1 Prototype ID Bank 3 | . 2 1 Hauler Manifests 1 | . 1 . Fabricator Hacks . | . . . Repair Station Hacks 6 | . 6 . Scan Component 3 | . 3 . Repair 3 | . 3 . Recycling Unit Hacks . | . . . Scanalyzer . | . . . Garrison Access Hacks . | . . . Unauthorized Hacks 8 | . 8 . Terminals 8 | . 8 . Botnet 2 | . 2 . Skim 6 | . 6 . Fabricators . | . . . Repair Stations . | . . . Recycling Units . | . . . Scanalyzers . | . . . Garrison Access . | . . . Data Cores Recovered 1 | . 1 . Used . | . . . Hacking Detections 11 | . 10 1 Full Trace Events 2 | . 2 . Feedback Events 1 | . 1 . Corruption 1 | . 1 . Feedback Blocked . | . . . Robot Schematics Acquired . | . . . Robots Built . | . . . Authchips . | . . . Time . | . . . Total Robot Build Rating . | . . . Part Schematics Acquired . | . . . Parts Built . | . . . Authchips . | . . . Time . | . . . Total Part Build Rating . | . . . Part Studies Acquired . | . . . Parts Repaired 3 | . 3 . Time 78 | . 78 . Parts Recycled . | . . . Recycled Matter . | . . . Retrieved Matter . | . . . Retrieved Components . | . . . Parts Scanalyzed . | . . . Part Schematics Acquired . | . . . Parts Damaged . | . . . Bothacking | -11 -10 -10 ------------ Run | Yrd Mat Min Used RIF Installer . | . . . Robots Hacked . | . . . Non-combat . | . . . Combat . | . . . Robot Hacks Applied . | . . . Relay Couplers Released . | . . . Fabnet Peak Effective % . | . . . Robots Rewired . | . . . Allies Hacked . | . . . Hacks Repelled . | . . . Allies | -11 -10 -10 -------- Run | Yrd Mat Min Total Allies . | . . . Largest Group . | . . . Highest-Rated Group . | . . . Highest-Rated Ally . | . . . Total Orders . | . . . Ally Attacks . | . . . Total Damage . | . . . Kills . | . . . Allies Corrupted . | . . . Allies Melted . | . . . Intel | -11 -10 -10 ------- Run | Yrd Mat Min Active Infowar (turns) 2015 | 38 1699 278 Seismic 2015 | 38 1699 278 Robot Analysis Total . | . . . Derelict Logs Recovered . | . . . Drone Launches . | . . . Drone Recoveries . | . . . Exploration | -11 -10 -10 ------------- Run | Yrd Mat Min Turns Passed 2069 | 91 1699 279 Spaces Moved 1039 | 55 820 164 Core 12 | 12 . . Treads 1012 | 28 820 164 Legs . | . . . Wheels 15 | 15 . . Hover . | . . . Flight . | . . . Fastest Speed 50 | 50 160 160 Average Speed 158 | 122 160 160 Slowest Speed 160 | 160 160 160 Overloaded Moves . | . . . Propulsion Burnouts . | . . . Robots Hopped . | . . . Potential Cave-ins . | . . . Cave-ins Triggered 1 | . . 1 Exploration Rate (%) 49 | 5 95 49 Regions Visited 2 Branch Regions 1 Pre-discovered Areas 1 | . 1 . Known Exits Taken . | . . . Unknown Exits Taken 2 | 1 1 . Scrap Searched 1 | . . 1 Spaces Dug 2 | . . 2 Terrain Destroyed 44 | . 42 2 Melee . | . . . Projectile 2 | . . 2 AOE 42 | . 42 . Terrain Rammed . | . . . Walls Destroyed . | . . . Machines Disabled . | . . . Actions | -11 -10 -10 --------- Run | Yrd Mat Min Total 1361 | 69 1121 171 Wait 225 | . 225 . Move 1037 | 54 819 164 Hop . | . . . Pick Up 17 | 3 13 1 Fast Attach 7 | 7 . . Attach 2 | . 2 . Detach . | . . . Swap 12 | 2 9 1 Drop 2 | . 2 . Fire 58 | 3 50 5 Melee . | . . . Ram . | . . . Kick . | . . . Crush 1 | . 1 . Escape Stasis . | . . . Rewire . | . . . Trap . | . . . Miscellaneous . | . . . Route ------- -11/Scrapyard -10/Materials (discovered 6 exits: *Mat x3 / *Min x2 / *Sub) -10/Mines (discovered 2 exits: *Mat x2) History --------- Turn | Location | Event 29 | -11/Scrapyard | Discovered new exit (range 13) 92 | -11/Scrapyard | Entered Materials 278 | -10/Materials | Discovered new exit (range 16) 306 | -10/Materials | Build established: Mutant 597 | -10/Materials | Discovered new exit (range 7) 598 | -10/Materials | Discovered new exit (range 16) 692 | -10/Materials | Derelicts attacked the area 755 | -10/Materials | Repaired Lgt. Treads 795 | -10/Materials | Repaired Lgt. Treads 831 | -10/Materials | Repaired Ion Engine? 874 | -10/Materials | Discovered new exit (range 8) 1379 | -10/Materials | Discovered new exit (range 15) 1475 | -10/Materials | Discovered new exit (range 3) 1564 | -10/Materials | Learned location of 1 exit from Storage 1639 | -10/Materials | Identified exit to Subcaves 1678 | -10/Materials | Learned Storage emergency access door positions 1682 | -10/Materials | Learned Recycling recycling unit intel 1683 | -10/Materials | Learned location of Mines (-9) 1715 | -10/Materials | Loaded intel: 8 terminal locations 1746 | -10/Materials | Learned 2 Mines zone layouts 1791 | -10/Materials | Entered Mines 1792 | -10/Mines | Identified exit to Materials 1811 | -10/Mines | Met a Derelict bent on vengeance 2029 | -10/Mines | Found a hidden stash of uninstalled traps 2045 | -10/Mines | Assembled infested the area 2069 | -10/Mines | Crushed by falling debris 2069 | -10/Mines | Core integrity fell below 50% 2069 | -10/Mines | Core integrity fell below 20% 2070 | -10/Mines | Destroyed by as-32708 with Assembled Rifle Last Messages --------------- 01991_ Found Lrg. Storage Unit. 01991_ Found 66 Matter. 01992_ Acquired 5 matter. 01995_ Acquired Datajack. 02011_ W8-FT4(g): "UNAWARE KILLED MY BEST FRIEND! VENGEANCE!" 02029_ A stash of uninstalled traps is collected here! 02044_ System corrupted: Heat flow error (+149). 02045_ ALERT: Infestation in the mines, dispatching Demolisher response squad. 02047_ W8-FT4(g): "I WILL HAVE VENGEANCE!" 02053_ R-06 Scavenger suffers critical hit (Destroy). 02060_ as-77883 destroyed. 02065_ as-98595 destroyed. 02069_ The unstable cave ceiling collapses. 02069_ Crushed by falling debris. 02069_ Seismic Detector destroyed. 02069_ System corrupted by crushing effect (+2). 02069_ Mining Laser destroyed. 02069_ System corrupted by crushing effect (+5). 02070_ K-01 Serf destroyed. Map ----- +----------------------------------------------------+ | | | | | | | | | | | | | | | | | | | | | | | | | | | | | | | | | ???????????????????????????????????????????? | | ???????????????????????????????????????????? | | ???????????????????????????????????????????? | | ?????????????????????????????????????####??? | | ????????????????????????????????????## ###? | | ???????????????????????????????????## ## | | ???????????????????###??????????#### # | | ???????????????##### #??????????# | | ??????????????## #######??????# ## ## | | ?????????????## @## ##??#### ### ## | | ?????????????# a #### & #?## | | ?????????????#aa a ## & & ##?## # | | ???????? aa && #??## ## | | ?????? aa a *= #???###? | | ?????? ## !%= ##??????? | | ?????? a???# [ ## ##???????? | | ???????????# #### #????????? | | ???????????## #### ##???????? | | ????????????## ## ##??????? | | ?????????????#### * #??????? | | ????????????????## =%! ## #??????? | | ?????????????????# ## ##### ##??????? | | ?????????????????# ######???####???????? | | ?????????????????# #?####??????????????? | | ?????????????????# ? #??????????????# | | ???????## ##?## ?????????????????## | | ????????##### #???## #????????????????## | | ????????????# #????# #????????????????# | | ????????????# #????# ##????????????????# | | ???????###### #????# ###??????????????????# | | ???????# #????# #????????????????????## | | ???????# ######????# #??#??????????????????# | | ???????# #?????????# #??#??????????????????? | | ???????# #?????????# #??#??????????????????? | +----------------------------------------------------+ Best States ------------- Heat Dissipation 25 Energy Generation 10 Energy Capacity 250 Matter Stores 300 Matter Capacity 300 Sight Range 16 Terrain Scan Density 10 Evasion (%) 50 Recoil Reduction 2 Item Schematics ----------------- None Robot Schematics ------------------ None Fabricated ------------ Nothing Repaired ---------- Lgt. Treads | 53% | -10/Materials Lgt. Treads | 68% | -10/Materials Ion Engine | 21% | -10/Materials Studied --------- None Alien Tech Used ----------------- None Achievements -------------- None Challenges ------------ None Game ------ Seed DisassembledSlugShotgun Manual? 0 Play Time 00:20:19 Cumulative 150.2 hours Start 2026.04.04 @ 19:44:02 End 2026.04.04 @ 20:13:55 Sessions 1 Manual Loads 0 Difficulty Rogue Special Mode None Game No. 137 Rogue 92 Adventurer 45 Explorer 0 Win Type - Total 3 Types 2/0/0/1/0/0/0/0/0/0 Lore% 73 Gallery% 60 Achievement% 43 Wizard Run 0 Options --------- Layout 0 ASCII 1 Keyboard 1 Movement Numpad Keybinds 0 Fullscreen 1 Font 24/Smallcaps Map View 76x50 Zoom Use 0% Tactical HUD 1 Map Filters NONE Filters NONE Steam 1 RUN: 8b647a2c-912c-4e5e-b365-a96c30abcdd2